fUST/lending_fUST_20251107
["ID","MTS","AMOUNT","RATE_DAILY","PERIOD"]
[393312656,1762452990889,150.0,0.00014482,2]
[393312657,1762452998675,150.0,0.00014482,2]
[393312658,1762453006802,150.0,0.00014482,2]
[393312659,1762453008390,1540.25,0.00017108,3]
[393312660,1762453015030,150.0,0.00014482,2]
[393312661,1762453019138,770.13,0.00017108,3]
[393312662,1762453023052,150.0,0.00014482,2]
[393312663,1762453030965,150.0,0.00014482,2]
[393312665,1762453046777,150.0,0.00014373,2]
[393312666,1762453051421,577.63,0.00017206,3]
[393312667,1762453055468,150.0,0.00014373,2]
[393312668,1762453071046,150.0,0.00014373,2]
[393312669,1762453079423,150.0,0.00014373,2]
[393312670,1762453094212,150.0,0.00014373,2]
[393312671,1762453101952,150.0,0.00014373,2]
[393312672,1762453117058,150.0,0.00014373,2]
[393312673,1762453124765,150.0,0.00014373,2]
[393312674,1762453139683,150.0,0.00014373,2]
[393312675,1762453148332,150.0,0.00014373,2]
[393312677,1762453163110,3918.6356716,0.00013756,2]
[393312678,1762453163355,150.0,0.00014373,2]
[393312679,1762453171180,150.0,0.00014373,2]
[393312680,1762453186536,150.0,0.00014373,2]
[393312681,1762453194381,150.0,0.00014373,2]
[393312682,1762453209739,150.0,0.00014373,2]
[393312683,1762453217485,150.0,0.00014373,2]
[393312684,1762453227386,150.0,0.00014373,2]
[393312685,1762453235686,15456.64587723,0.00014452,2]
[393312686,1762453242459,999.0,0.00013697,2]
[393312687,1762453244131,6927.75111733,0.00014452,2]
[393312688,1762453251858,15456.64587723,0.00014452,2]
[393312689,1762453259846,15456.64587723,0.00014452,2]
[393312690,1762453274961,15456.64587723,0.00014452,2]
[393312691,1762453282722,15456.64587723,0.00014452,2]
[393312692,1762453297761,15456.64587723,0.00014452,2]
[393312693,1762453306185,12309.27796372,0.00014452,2]
[393312694,1762453321362,15456.64587723,0.00014452,2]
[393312699,1762453326619,2809.8054423,0.00013798,2]
[393312725,1762453343561,15456.64587723,0.00014452,2]
[393312726,1762453365833,15456.64587723,0.00014451,2]
[393312727,1762453388003,50000.0,0.00014451,2]
[393312728,1762453410170,50000.0,0.00014451,2]
[393312729,1762453432392,50000.0,0.00014451,2]
[393312730,1762453455559,10470.12638577,0.00014352,2]
[393312731,1762453476684,150.0,0.00018,3]
[393312732,1762453477768,15456.64587723,0.00014351,2]
[393312733,1762453499963,15456.64587723,0.00014351,2]
[393312734,1762453522703,2492.01271277,0.00014351,2]
[393312735,1762453535460,9254.0118729,0.00013706,2]
[393312736,1762453606290,1058.92,0.00016111,3]
[393312737,1762453606593,2117.84,0.00017481,3]
[393312738,1762453617073,529.46,0.00016111,3]
[393312739,1762453617338,1058.92,0.00017481,3]
[393312740,1762453628024,264.73,0.00016428,3]
[393312741,1762453628310,529.46,0.00017798,3]
[393312742,1762453638820,794.2,0.00017142,3]
[393312743,1762453673755,10470.12638577,0.000144,2]
[393312744,1762453700051,287.34615533,0.0001,2]
[393312745,1762453709548,1000.0,0.0001,2]
[393312746,1762453712614,500.0,0.00014494,2]
[393312747,1762453712652,500.0,0.00014494,2]
[393312748,1762453712687,500.0,0.00014494,2]
[393312749,1762453712723,500.0,0.00014494,2]
[393312750,1762453712765,500.0,0.00014494,2]
[393312751,1762453712799,501.29117119,0.00014494,2]
[393312752,1762453712834,500.0,0.00014494,2]
[393312753,1762453712868,500.0,0.00014494,2]
[393312754,1762453712904,500.0,0.00014494,2]
[393312755,1762453712944,500.0,0.00014494,2]
[393312756,1762453712977,562.20458946,0.00014494,2]
[393312757,1762453713012,500.0,0.00014494,2]
[393312758,1762453713047,500.0,0.00014494,2]
[393312759,1762453713082,500.0,0.00014494,2]
[393312760,1762453713116,500.0,0.00014494,2]
[393312761,1762453713151,500.0,0.00014494,2]
[393312762,1762453713188,467.62634042,0.00014494,2]
[393312763,1762453713224,500.0,0.00014494,2]
[393312764,1762453713261,500.0,0.00014494,2]
[393312765,1762453713295,383.52528156,0.00014494,2]
[393312766,1762453713333,387.8812746,0.00014494,2]
[393312767,1762453713372,500.0,0.00014494,2]
[393312768,1762453713542,500.0,0.00014494,2]
[393312769,1762453713598,500.0,0.00014494,2]
[393312770,1762453713635,500.0,0.00014494,2]
[393312771,1762453713672,500.0,0.00014494,2]
[393312772,1762453713706,500.0,0.00014494,2]
[393312773,1762453713744,500.0,0.00014494,2]
[393312774,1762453713778,500.0,0.00014494,2]
[393312775,1762453713816,500.0,0.00014494,2]
[393312776,1762453713852,500.0,0.00014494,2]
[393312777,1762453713894,154.11722,0.00014494,2]
[393312778,1762453715908,433.6775053,0.00037212,120]
[393312779,1762453805911,1000.0,0.00013699,2]
[393312818,1762453832539,-150.0,0.00014495,2]
[393312820,1762453832548,-151.0,0.00014495,2]
[393312822,1762453832557,-151.0,0.00014495,2]
[393312824,1762453832566,-151.0,0.00014495,2]
[393312826,1762453832576,-246.044693,0.00014496,2]
[393312828,1762453832585,-160.0,0.00014597,2]
[393312830,1762453832594,-151.0,0.00014597,2]
[393312832,1762453832604,-151.0,0.00014597,2]
[393312844,1762453832616,-151.648538,0.00014598,2]
[393312848,1762453832737,-228.79398921,0.00014672,2]
[393312850,1762453832749,-502.46768231,0.00014673,2]
[393312852,1762453832759,-353.30326899,0.00014673,2]
[393312854,1762453832768,-11299.67739958,0.00014673,2]
[393312856,1762453832780,-3331.6,0.00014673,2]
[393312862,1762453832826,-2783.19839508,0.00014673,2]
[393312927,1762453838455,-7947.2,0.00014673,2]
[393312934,1762453838510,-24638.32420534,0.00014673,2]
[393312936,1762453838520,-500.0,0.000147,2]
[393312938,1762453838530,-500.0,0.000147,2]
[393312940,1762453838541,-387.54,0.000147,2]
[393312942,1762453838550,-387.54,0.000147,2]
[393312944,1762453838559,-387.54,0.000147,2]
[393312946,1762453838570,-156.374,0.00014772,2]
[393312948,1762453838580,-387.54,0.000148,2]
[393312950,1762453838589,-387.54,0.000148,2]
[393312952,1762453838599,-387.54,0.000148,2]
[393312953,1762453838612,-366.06025452,0.000149,2]
[393312955,1762453838622,-387.54,0.000149,2]
[393312957,1762453838631,-387.54,0.000149,2]
[393312958,1762453838643,-387.54,0.000149,2]
[393312959,1762453838652,-387.54,0.000149,2]
[393312960,1762453838663,-160.0,0.00015,2]
[393312961,1762453838673,-28926.91873444,0.00015,2]
[393312962,1762453838683,-387.54,0.00015,2]
[393312963,1762453838693,-387.54,0.00015,2]
[393312964,1762453838702,-387.54,0.00015,2]
[393312965,1762453838711,-205.7477954,0.00015068,2]
[393312966,1762453838721,-500.0,0.00015099,2]
[393312967,1762453838731,-500.0,0.00015099,2]
[393312968,1762453838741,-387.54,0.000151,2]
[393312969,1762453838750,-387.54,0.000151,2]
[393312970,1762453838759,-387.54,0.000151,2]
[393312971,1762453838768,-387.54,0.000152,2]
[393312972,1762453838778,-387.54,0.000152,2]
[393312973,1762453838788,-387.54,0.000152,2]
[393312974,1762453838797,-387.54,0.000152,2]
[393312975,1762453838807,-387.54,0.000153,2]
[393312976,1762453838816,-387.54,0.000153,2]
[393312977,1762453838825,-387.54,0.000153,2]
[393312979,1762453838835,-500.0,0.00015302,2]
[393312981,1762453838845,-500.0,0.00015302,2]
[393312983,1762453838855,-500.0,0.00015399,2]
[393312985,1762453838866,-387.54,0.000154,2]
[393312987,1762453838876,-387.54,0.000154,2]
[393312989,1762453838886,-387.54,0.000154,2]
[393312991,1762453838896,-2799.7735392,0.00015459,2]
[393312993,1762453838906,-242.90753452,0.00015473,2]
[393312995,1762453838915,-237.04,0.00015485,2]
[393312997,1762453838926,-387.54,0.000155,2]
[393312999,1762453838936,-387.54,0.000155,2]
[393313001,1762453838946,-387.54,0.000155,2]
[393313003,1762453838956,-387.54,0.000155,2]
[393313005,1762453838966,-151.0,0.00015512,2]
[393313007,1762453838976,-151.0,0.00015512,2]
[393313009,1762453838986,-296.33809117,0.00015512,2]
[393313011,1762453838995,-440.56580941,0.00015521,2]
[393313013,1762453839005,-40834.13886,0.00015522,2]
[393313015,1762453839014,-501.70803607,0.00015573,2]
[393313017,1762453839023,-645.91562515,0.00015573,2]
[393313019,1762453839033,-503.47084678,0.00015573,2]
[393313020,1762453839044,-500.0,0.00015573,2]
[393313022,1762453839054,-503.1055677,0.00015573,2]
[393313024,1762453839064,-485.40550878,0.00015573,2]
[393313027,1762453839074,-500.0,0.00015573,2]
[393313029,1762453839084,-515.70850134,0.00015573,2]
[393313031,1762453839094,-164.2676921,0.00015573,2]
[393313033,1762453839103,-501.55675906,0.00015573,2]
[393313034,1762453839114,-503.24461669,0.00015573,2]
[393313036,1762453839124,-501.33645723,0.00015573,2]
[393313037,1762453839133,-216.25163474,0.00015573,2]
[393313039,1762453839143,-500.0,0.00015573,2]
[393313041,1762453839152,-501.336652,0.00015573,2]
[393313043,1762453839161,-500.0,0.00015573,2]
[393313045,1762453839171,-500.0,0.00015573,2]
[393313047,1762453839180,-500.0,0.00015573,2]
[393313049,1762453839190,-503.17034432,0.00015573,2]
[393313051,1762453839199,-500.0,0.00015573,2]
[393313053,1762453839209,-294.5334864,0.00015573,2]
[393313055,1762453839219,-500.0,0.00015573,2]
[393313057,1762453839228,-500.0,0.00015573,2]
[393313058,1762453839237,-500.0,0.00015573,2]
[393313060,1762453839247,-500.0,0.00015573,2]
[393313062,1762453839256,-387.54,0.000156,2]
[393313064,1762453839265,-387.54,0.000156,2]
[393313066,1762453839274,-387.54,0.000156,2]
[393313068,1762453839283,-387.54,0.000157,2]
[393313070,1762453839293,-387.54,0.000157,2]
[393313072,1762453839302,-387.54,0.000157,2]
[393313074,1762453839312,-387.54,0.000158,2]
[393313076,1762453839321,-387.54,0.000158,2]
[393313078,1762453839333,-387.54,0.000158,2]
[393313080,1762453839342,-387.54,0.000158,2]
[393313082,1762453839352,-387.54,0.000159,2]
[393313084,1762453839361,-387.54,0.000159,2]
[393313086,1762453839370,-387.54,0.000159,2]
[393313088,1762453839379,-553.13,0.00016,2]
[393313090,1762453839389,-387.54,0.00016,2]
[393313092,1762453839398,-387.54,0.00016,2]
[393313094,1762453839407,-387.54,0.00016,2]
[393313096,1762453839416,-387.54,0.000161,2]
[393313098,1762453839426,-387.54,0.000161,2]
[393313100,1762453839435,-387.54,0.000161,2]
[393313102,1762453839443,-387.54,0.000161,2]
[393313104,1762453839452,-958.62747942,0.00016121,2]
[393313106,1762453839464,-41.37252058,0.00016121,2]
[393313108,1762453839474,-1000.0,0.00016121,2]
[393313110,1762453839484,-1000.0,0.00016121,2]
[393313112,1762453839495,-357.73682317,0.00016121,2]
[393313114,1762453839504,-500.0,0.00016121,2]
[393313116,1762453839514,-81.35721404,0.00016121,2]
[393313121,1762453839556,-500.0,0.00014672,2]
[393313123,1762453839568,-209.28058684,0.00014672,2]
[393313126,1762453839579,-918.64278596,0.00016121,2]
[393313128,1762453839591,-1000.0,0.00016121,2]
[393313130,1762453839604,-500.0,0.00016438,2]
[393313132,1762453839618,-177.0,0.00016495,2]
[393313134,1762453839628,-3363.2380969,0.00016534,2]
[393313136,1762453839639,-500.0,0.00016604,2]
[393313138,1762453839650,-500.0,0.00016604,2]
[393313141,1762453839662,-1500.0,0.00016668,2]
[393313143,1762453839673,-1500.0,0.00016668,2]
[393313145,1762453839684,-419.45236215,0.00016668,2]
[393313147,1762453839694,-150.0,0.00016687,2]
[393313149,1762453839705,-674.01494126,0.00016823,2]
[393313151,1762453839716,-268.19944399,0.00016905,2]
[393313153,1762453839727,-18999.80249958,0.00017,2]
[393313155,1762453839740,-607.05199346,0.00017,2]
[393313158,1762453839754,-1668.75000003,0.00017,2]
[393313208,1762453840727,-163.06959338,0.00014672,2]
[393313210,1762453840740,-265.32014162,0.00014672,2]
[393313212,1762453840752,-350.45746889,0.00014672,2]
[393313214,1762453840766,-500.0,0.00016438,2]
[393313217,1762453840777,-3415.17079611,0.00017,2]
[393313219,1762453840790,-2557.23979658,0.00017,2]
[393313357,1762453843773,-500.0,0.00014672,2]
[393313358,1762453843783,-500.0,0.000147,2]
[393313359,1762453843795,-500.9769299,0.000147,2]
[393313360,1762453843805,-6661.88010218,0.00017,2]
[393313361,1762453843816,-250.0,0.0001711,2]
[393313362,1762453843826,-1056.97396949,0.00017152,2]
[393313363,1762453843837,-1064.71587848,0.00017216,2]
[393313364,1762453843849,-2033.05225721,0.00017216,2]
[393313365,1762453843859,-268.19944399,0.00017356,2]
[393313366,1762453843871,-273.0,0.00017461,2]
[393313367,1762453843880,-500.0,0.00017513,2]
[393313368,1762453843891,-500.0,0.00017513,2]
[393313369,1762453843902,-268.46764343,0.00017807,2]
[393313370,1762453843914,-165.99943688,0.00017909,2]
[393313371,1762453843926,-502.07956742,0.00017973,2]
[393313372,1762453843938,-500.0,0.00017973,2]
[393313373,1762453843949,-501.76283583,0.00017973,2]
[393313374,1762453843961,-500.0,0.00017973,2]
[393313375,1762453843972,-500.0,0.00017973,2]
[393313376,1762453843984,-343.99720549,0.00017973,2]
[393313377,1762453843994,-500.0,0.00017973,2]
[393313378,1762453844004,-482.50036061,0.00017973,2]
[393313379,1762453844014,-221.38134301,0.00017973,2]
[393313380,1762453844024,-500.0,0.00017973,2]
[393313381,1762453844034,-500.0,0.00017973,2]
[393313382,1762453844044,-500.0,0.00017973,2]
[393313383,1762453844054,-500.0,0.00017973,2]
[393313384,1762453844064,-500.0,0.00017973,2]
[393313385,1762453844074,-151.0,0.00018,2]
[393313386,1762453844085,-151.0,0.00018,2]
[393313387,1762453844096,-19481.33287732,0.00018,2]
[393313388,1762453844109,-3154.65737731,0.00018,2]
[393313395,1762453847188,-452.78304921,0.00014672,2]
[393313396,1762453847201,-1136.2149625,0.00018,2]
[393313400,1762453867108,160.0,0.00037212,20]
[393313401,1762453995486,-612.96623045,0.00014495,2]
[393313402,1762453995519,-150.0,0.00014495,2]
[393313403,1762453995553,-500.0,0.00014495,2]
[393313404,1762454139364,500.0,0.00037206,60]
[393313405,1762454139801,500.0,0.00037206,60]
[393313406,1762454140182,500.0,0.00037206,60]
[393313407,1762454140538,500.0,0.00037206,60]
[393313408,1762454140909,500.0,0.00037206,60]
[393313409,1762454141303,619.38164803,0.00037206,60]
[393313412,1762454394789,9161.36058754,0.00014468,2]
[393313413,1762454413216,293.0862239,0.00013677,2]
[393313414,1762454479535,930.355907,0.00013699,2]
[393313416,1762454620114,8016.19051408,0.00014466,2]
[393313419,1762454850374,7014.16669982,0.00014464,2]
[393313441,1762455031789,-150.0,0.00014548,2]
[393313444,1762455031800,-300.0,0.00014562,2]
[393313446,1762455031810,-300.0,0.00014562,2]
[393313447,1762455031820,-300.0,0.00014562,2]
[393313449,1762455031830,-300.0,0.00014562,2]
[393313451,1762455031840,-181.1,0.00014562,2]
[393313454,1762455031853,-118.9,0.00014562,2]
[393313456,1762455031863,-1200.0,0.00014562,2]
[393313458,1762455031875,-1200.0,0.00014563,2]
[393313460,1762455031885,-500.0,0.00014563,2]
[393313462,1762455031896,-500.0,0.00014563,2]
[393313465,1762455031906,-500.0,0.00014563,2]
[393313467,1762455031916,-500.0,0.00014563,2]
[393313469,1762455031926,-500.0,0.00014563,2]
[393313471,1762455031936,-500.0,0.00014563,2]
[393313473,1762455031946,-500.0,0.00014563,2]
[393313475,1762455031955,-500.0,0.00014563,2]
[393313477,1762455031968,-500.0,0.00014563,2]
[393313479,1762455031979,-500.0,0.00014563,2]
[393313481,1762455031989,-500.0,0.00014563,2]
[393313483,1762455031999,-500.0,0.00014563,2]
[393313485,1762455032011,-500.0,0.00014563,2]
[393313487,1762455032022,-500.0,0.00014563,2]
[393313489,1762455032033,-311.74773833,0.00014563,2]
[393313491,1762455032045,-500.0,0.00014563,2]
[393313493,1762455032055,-500.0,0.00014563,2]
[393313495,1762455032065,-500.0,0.00014563,2]
[393313497,1762455032075,-217.461358,0.00014563,2]
[393313499,1762455032087,-500.0,0.00014563,2]
[393313501,1762455032096,-500.0,0.00014563,2]
[393313503,1762455032107,-500.0,0.00014563,2]
[393313506,1762455032118,-500.0,0.00014563,2]
[393313508,1762455032128,-500.0,0.00014563,2]
[393313510,1762455032138,-500.0,0.00014563,2]
[393313512,1762455032149,-500.0,0.00014563,2]
[393313514,1762455032159,-500.0,0.00014563,2]
[393313516,1762455032169,-500.0,0.00014563,2]
[393313518,1762455032179,-500.0,0.00014563,2]
[393313520,1762455032190,-224.25,0.00014563,2]
[393313522,1762455032200,-415.72874959,0.00014563,2]
[393313524,1762455032211,-500.0,0.00014563,2]
[393313526,1762455032221,-500.0,0.00014563,2]
[393313528,1762455032231,-500.0,0.00014563,2]
[393313530,1762455032241,-500.0,0.00014563,2]
[393313532,1762455032251,-500.0,0.00014563,2]
[393313534,1762455032262,-500.0,0.00014563,2]
[393313536,1762455032272,-165.6275072,0.00014563,2]
[393313538,1762455032283,-500.0,0.00014563,2]
[393313540,1762455032293,-500.0,0.00014563,2]
[393313554,1762455032430,-500.0,0.00014563,2]
[393313556,1762455032442,-500.0,0.00014563,2]
[393313558,1762455032452,-500.0,0.00014563,2]
[393313560,1762455032462,-500.0,0.00014563,2]
[393313562,1762455032472,-500.0,0.00014563,2]
[393313564,1762455032481,-500.0,0.00014563,2]
[393313566,1762455032491,-625.68539897,0.00014563,2]
[393313568,1762455032501,-500.0,0.00014563,2]
[393313570,1762455032521,-500.0,0.00014563,2]
[393313572,1762455032539,-500.0,0.00014563,2]
[393313574,1762455032548,-500.0,0.00014563,2]
[393313576,1762455032558,-500.0,0.00014563,2]
[393313578,1762455032567,-500.0,0.00014563,2]
[393313580,1762455032576,-500.0,0.00014563,2]
[393313582,1762455032587,-500.0,0.00014563,2]
[393313584,1762455032596,-500.0,0.00014563,2]
[393313586,1762455032605,-500.0,0.00014563,2]
[393313588,1762455032614,-500.0,0.00014563,2]
[393313589,1762455032624,-500.0,0.00014563,2]
[393313591,1762455032633,-500.0,0.00014563,2]
[393313592,1762455032642,-500.0,0.00014563,2]
[393313593,1762455032651,-500.0,0.00014563,2]
[393313594,1762455032660,-500.0,0.00014563,2]
[393313595,1762455032670,-256.85398975,0.00014563,2]
[393313596,1762455032679,-64.16563557,0.00014563,2]
[393313614,1762455037582,-435.83436443,0.00014563,2]
[393313617,1762455037593,-500.0,0.00014563,2]
[393313619,1762455037602,-500.0,0.00014563,2]
[393313620,1762455037611,-500.0,0.00014563,2]
[393313622,1762455037621,-500.0,0.00014563,2]
[393313624,1762455037630,-500.0,0.00014563,2]
[393313626,1762455037639,-165.3278925,0.00014563,2]
[393313628,1762455037648,-500.0,0.00014563,2]
[393313630,1762455037656,-500.0,0.00014563,2]
[393313632,1762455037666,-500.0,0.00014563,2]
[393313634,1762455037675,-500.0,0.00014563,2]
[393313636,1762455037684,-500.0,0.00014563,2]
[393313638,1762455037693,-500.0,0.00014563,2]
[393313640,1762455037702,-500.0,0.00014563,2]
[393313642,1762455037711,-500.0,0.00014563,2]
[393313644,1762455037720,-500.0,0.00014563,2]
[393313645,1762455037730,-500.0,0.00014563,2]
[393313647,1762455037739,-500.0,0.00014563,2]
[393313649,1762455037748,-437.17081058,0.00014563,2]
[393313651,1762455037757,-500.0,0.00014563,2]
[393313653,1762455037766,-500.0,0.00014563,2]
[393313654,1762455037775,-500.0,0.00014563,2]
[393313656,1762455037785,-500.0,0.00014563,2]
[393313657,1762455037794,-500.0,0.00014563,2]
[393313658,1762455037803,-130.47446345,0.00014563,2]
[393313659,1762455037814,-369.52553655,0.00014563,2]
[393313660,1762455037823,-284.04936395,0.00014563,2]
[393313661,1762455037834,-215.95063605,0.00014563,2]
[393313662,1762455037845,-500.0,0.00014563,2]
[393313663,1762455037855,-525.75,0.00014563,2]
[393313664,1762455037864,-500.0,0.00014563,2]
[393313665,1762455037874,-500.0,0.00014563,2]
[393313666,1762455037883,-500.0,0.00014563,2]
[393313667,1762455037892,-500.0,0.00014563,2]
[393313668,1762455037902,-500.0,0.00014563,2]
[393313669,1762455037911,-34.58742801,0.00014563,2]
[393313670,1762455037923,-465.41257199,0.00014563,2]
[393313671,1762455037932,-500.0,0.00014563,2]
[393313672,1762455037942,-500.0,0.00014563,2]
[393313673,1762455037951,-500.0,0.00014563,2]
[393313674,1762455037962,-500.0,0.00014563,2]
[393313675,1762455037975,-500.0,0.00014563,2]
[393313676,1762455037984,-500.0,0.00014563,2]
[393313677,1762455037994,-500.0,0.00014563,2]
[393313678,1762455038003,-500.0,0.00014563,2]
[393313679,1762455038013,-500.0,0.00014563,2]
[393313680,1762455038022,-500.0,0.00014563,2]
[393313681,1762455038032,-500.0,0.00014563,2]
[393313682,1762455038042,-500.0,0.00014563,2]
[393313683,1762455038052,-500.0,0.00014563,2]
[393313684,1762455038061,-500.0,0.00014563,2]
[393313685,1762455038071,-500.0,0.00014563,2]
[393313686,1762455038081,-500.0,0.00014563,2]
[393313687,1762455038093,-500.0,0.00014563,2]
[393313688,1762455038102,-647.12321273,0.00014563,2]
[393313689,1762455038112,-500.0,0.00014563,2]
[393313690,1762455038121,-500.0,0.00014563,2]
[393313691,1762455038131,-500.0,0.00014563,2]
[393313692,1762455038140,-500.0,0.00014563,2]
[393313693,1762455038150,-500.0,0.00014563,2]
[393313694,1762455038160,-500.0,0.00014563,2]
[393313695,1762455038171,-500.0,0.00014563,2]
[393313696,1762455038181,-500.0,0.00014563,2]
[393313697,1762455038192,-500.0,0.00014563,2]
[393313698,1762455038203,-500.0,0.00014563,2]
[393313699,1762455038213,-151.0,0.00014564,2]
[393313700,1762455038223,-30040.5950689,0.00014564,2]
[393313701,1762455038233,-500.0,0.00014565,2]
[393313702,1762455038243,-500.0,0.00014565,2]
[393313703,1762455038253,-500.0,0.00014565,2]
[393313704,1762455038263,-151.405992,0.00014565,2]
[393313705,1762455038273,-151.0,0.00014567,2]
[393313706,1762455038283,-151.0,0.00014567,2]
[393313707,1762455038293,-160.0,0.00014569,2]
[393313708,1762455038302,-500.0,0.00014569,2]
[393313709,1762455038311,-631.36083051,0.00014573,2]
[393313710,1762455038321,-423.88223108,0.00014573,2]
[393313711,1762455038330,-500.0,0.00014573,2]
[393313712,1762455038342,-151.0,0.00014591,2]
[393313713,1762455038352,-232.02410139,0.00014591,2]
[393313714,1762455038362,-2342.17,0.000146,2]
[393313715,1762455038372,-2342.17,0.000146,2]
[393313716,1762455038382,-2342.17,0.000146,2]
[393313717,1762455038393,-2342.17,0.000146,2]
[393313718,1762455038403,-2342.17,0.000146,2]
[393313719,1762455038413,-2342.17,0.000146,2]
[393313720,1762455038422,-2342.17,0.000146,2]
[393313721,1762455038432,-2342.17,0.000146,2]
[393313722,1762455038441,-2342.17,0.000146,2]
[393313723,1762455038450,-2342.17,0.000146,2]
[393313724,1762455038459,-2342.17,0.000146,2]
[393313725,1762455038468,-2342.17,0.000146,2]
[393313726,1762455038478,-2342.17,0.000146,2]
[393313727,1762455038487,-2342.17,0.000146,2]
[393313728,1762455038497,-2342.17,0.000146,2]
[393313729,1762455038507,-2342.17,0.000146,2]
[393313730,1762455038517,-2342.17,0.000146,2]
[393313731,1762455038527,-2342.17,0.000146,2]
[393313732,1762455038537,-2342.17,0.000146,2]
[393313733,1762455038547,-2342.17,0.000146,2]
[393313734,1762455038557,-2342.17,0.000146,2]
[393313735,1762455038567,-2342.17,0.000146,2]
[393313736,1762455038576,-2342.17,0.000146,2]
[393313737,1762455038586,-2342.17,0.000146,2]
[393313738,1762455038599,-2342.17,0.000146,2]
[393313739,1762455038608,-2342.17,0.000146,2]
[393313740,1762455038618,-2342.17,0.000146,2]
[393313741,1762455038627,-2342.17,0.000146,2]
[393313742,1762455038637,-2342.17,0.000146,2]
[393313743,1762455038646,-2342.17,0.000146,2]
[393313744,1762455038656,-2342.17,0.000146,2]
[393313745,1762455038665,-2342.17,0.000146,2]
[393313746,1762455038674,-2342.17,0.000146,2]
[393313747,1762455038684,-2342.17,0.000146,2]
[393313748,1762455038693,-2342.17,0.000146,2]
[393313749,1762455038703,-2342.17,0.000146,2]
[393313750,1762455038712,-2342.17,0.000146,2]
[393313751,1762455038722,-2342.17,0.000146,2]
[393313752,1762455038731,-2342.17,0.000146,2]
[393313753,1762455038740,-2342.17,0.000146,2]
[393313754,1762455038749,-2342.17,0.000146,2]
[393313755,1762455038760,-2342.17,0.000146,2]
[393313756,1762455038770,-2342.17,0.000146,2]
[393313757,1762455038779,-2342.17,0.000146,2]
[393313758,1762455038789,-2342.17,0.000146,2]
[393313759,1762455038798,-2342.17,0.000146,2]
[393313760,1762455038808,-2342.17,0.000146,2]
[393313761,1762455038818,-2342.17,0.000146,2]
[393313762,1762455038827,-2342.17,0.000146,2]
[393313763,1762455038838,-151.0,0.00014622,2]
[393313764,1762455038848,-151.0,0.00014622,2]
[393313765,1762455038857,-500.0,0.00014672,2]
[393313766,1762455038868,-500.0,0.00014672,2]
[393313767,1762455038878,-151.0,0.00014677,2]
[393313768,1762455038887,-151.0,0.00014677,2]
[393313769,1762455038897,-226.89652407,0.00014731,2]
[393313770,1762455038906,-217.0,0.00014731,2]
[393313771,1762455038915,-500.0,0.00014999,2]
[393313772,1762455038925,-500.0,0.00015068,2]
[393313773,1762455038934,-1000.0,0.00015121,2]